fUSD/lending_fUSD_20241104
["ID","MTS","AMOUNT","RATE_DAILY","PERIOD"]
[341237414,1730711451262,-500.0,0.0004144,2]
[341237415,1730711451271,-500.0,0.0004144,2]
[341237416,1730711451282,-500.0,0.0004144,2]
[341237417,1730711451291,-521.40943712,0.0004144,2]
[341237418,1730711451301,-500.0,0.0004144,2]
[341237419,1730711451310,-524.95875664,0.0004144,2]
[341237420,1730711451319,-500.0,0.0004144,2]
[341237421,1730711451329,-505.58158668,0.0004144,2]
[341237422,1730711451339,-506.99175545,0.0004144,2]
[341237423,1730711451349,-500.0,0.0004144,2]
[341237424,1730711451359,-500.0,0.0004144,2]
[341237425,1730711451368,-555.99725202,0.0004144,2]
[341237426,1730711451377,-500.0,0.0004144,2]
[341237427,1730711451386,-523.49774705,0.0004144,2]
[341237428,1730711451396,-508.88614504,0.0004144,2]
[341237429,1730711451405,-500.0,0.0004144,2]
[341237430,1730711451414,-500.0,0.0004144,2]
[341237431,1730711451423,-500.0,0.0004144,2]
[341237432,1730711451432,-522.43564164,0.0004144,2]
[341237433,1730711451441,-500.0,0.0004144,2]
[341237434,1730711451450,-500.0,0.0004144,2]
[341237435,1730711451460,-500.0,0.0004144,2]
[341237436,1730711451469,-500.0,0.0004144,2]
[341237437,1730711451479,-500.0,0.0004144,2]
[341237438,1730711451488,-500.0,0.0004144,2]
[341237439,1730711451497,-500.0,0.0004144,2]
[341237440,1730711451507,-500.0,0.0004144,2]
[341237441,1730711451516,-1016.33,0.0004144,2]
[341237442,1730711451525,-1154.26,0.0004144,2]
[341237443,1730711451535,-500.0,0.0004144,2]
[341237444,1730711451544,-539.37160018,0.0004144,2]
[341237445,1730711451554,-500.0,0.0004144,2]
[341237446,1730711451563,-594.4095558,0.0004144,2]
[341237447,1730711451572,-500.0,0.0004144,2]
[341237448,1730711451582,-500.0,0.0004144,2]
[341237449,1730711451591,-500.0,0.0004144,2]
[341237450,1730711451601,-10956.67,0.0004144,2]
[341237451,1730711451611,-500.0,0.0004144,2]
[341237452,1730711451702,-500.0,0.0004144,2]
[341237453,1730711451713,-677.22,0.0004144,2]
[341237454,1730711451723,-500.0,0.0004144,2]
[341237455,1730711451734,-500.0,0.0004144,2]
[341237456,1730711451744,-520.33997579,0.0004144,2]
[341237457,1730711451754,-570.40962313,0.0004144,2]
[341237458,1730711451764,-500.0,0.0004144,2]
[341237459,1730711451773,-500.0,0.0004144,2]
[341237460,1730711451782,-512.10528008,0.0004144,2]
[341237461,1730711451791,-500.0,0.0004144,2]
[341237462,1730711451800,-1043.08194394,0.0004144,2]
[341237463,1730711451809,-500.0,0.0004144,2]
[341237464,1730711451818,-500.0,0.0004144,2]
[341237465,1730711451828,-500.0,0.0004144,2]
[341237466,1730711451839,-500.0,0.0004144,2]
[341237467,1730711451849,-500.0,0.0004144,2]
[341237468,1730711451858,-500.0,0.0004144,2]
[341237469,1730711451868,-500.0,0.0004144,2]
[341237470,1730711451878,-500.0,0.0004144,2]
[341237471,1730711451888,-171.11644346,0.0004144,2]
[341237472,1730711451898,-500.0,0.0004144,2]
[341237473,1730711451909,-500.0,0.0004144,2]
[341237474,1730711451918,-500.0,0.0004144,2]
[341237475,1730711451928,-500.0,0.0004144,2]
[341237476,1730711451937,-500.0,0.0004144,2]
[341237477,1730711451946,-500.0,0.0004144,2]
[341237478,1730711451957,-500.0,0.0004144,2]
[341237479,1730711451966,-500.0,0.0004144,2]
[341237480,1730711451976,-500.0,0.0004144,2]
[341237481,1730711451985,-500.0,0.0004144,2]
[341237482,1730711451995,-536.41492171,0.0004144,2]
[341237483,1730711452005,-500.0,0.0004144,2]
[341237484,1730711452020,-500.0,0.0004144,2]
[341237485,1730711452030,-500.0,0.0004144,2]
[341237486,1730711452040,-500.0,0.0004144,2]
[341237487,1730711452050,-500.0,0.0004144,2]
[341237488,1730711452058,-500.0,0.0004144,2]
[341237489,1730711452068,-500.0,0.0004144,2]
[341237490,1730711452077,-500.0,0.0004144,2]
[341237491,1730711452087,-163.80749958,0.0004144,2]
[341237492,1730711452096,-513.61302443,0.0004144,2]
[341237493,1730711452106,-500.0,0.0004144,2]
[341237494,1730711452115,-500.0,0.0004144,2]
[341237495,1730711452124,-500.0,0.0004144,2]
[341237496,1730711452134,-532.02427181,0.0004144,2]
[341237497,1730711452144,-281.82656379,0.0004144,2]
[341237498,1730711452154,-500.0,0.0004144,2]
[341237499,1730711452164,-500.0,0.0004144,2]
[341237500,1730711452174,-589.16071323,0.0004144,2]
[341237501,1730711452184,-500.0,0.0004144,2]
[341237502,1730711452194,-500.0,0.0004144,2]
[341237503,1730711452204,-500.0,0.0004144,2]
[341237504,1730711452213,-500.0,0.0004144,2]
[341237505,1730711452223,-500.0,0.0004144,2]
[341237506,1730711452232,-155.95696733,0.0004144,2]
[341237507,1730711452242,-500.0,0.0004144,2]
[341237508,1730711452251,-500.0,0.0004144,2]
[341237509,1730711452261,-500.0,0.0004144,2]
[341237510,1730711452271,-1011.7,0.0004144,2]
[341237511,1730711452280,-284.2987214,0.0004144,2]
[341237512,1730711452289,-500.0,0.0004144,2]
[341237513,1730711452299,-500.0,0.0004144,2]
[341237514,1730711452309,-500.0,0.0004144,2]
[341237515,1730711452318,-500.0,0.0004144,2]
[341237516,1730711452327,-500.0,0.0004144,2]
[341237517,1730711452337,-500.0,0.0004144,2]
[341237518,1730711452347,-500.0,0.0004144,2]
[341237519,1730711452356,-500.0,0.0004144,2]
[341237520,1730711452366,-500.0,0.0004144,2]
[341237521,1730711452375,-500.0,0.0004144,2]
[341237522,1730711452384,-500.0,0.0004144,2]
[341237523,1730711452395,-500.0,0.0004144,2]
[341237524,1730711452403,-500.0,0.0004144,2]
[341237525,1730711452413,-500.0,0.0004144,2]
[341237526,1730711452422,-500.0,0.0004144,2]
[341237527,1730711452431,-500.0,0.0004144,2]
[341237528,1730711452441,-233.37017038,0.0004144,2]
[341237529,1730711452450,-612.85860198,0.0004144,2]
[341237530,1730711452463,-345.31766604,0.0004144,2]
[341237531,1730711452479,-500.0,0.0004144,2]
[341237532,1730711452496,-500.0,0.0004144,2]
[341237533,1730711452507,-500.0,0.0004144,2]
[341237534,1730711452524,-500.0,0.0004144,2]
[341237535,1730711452539,-500.0,0.0004144,2]
[341237536,1730711452553,-500.0,0.0004144,2]
[341237537,1730711452570,-500.0,0.0004144,2]
[341237538,1730711452584,-521.96430733,0.0004144,2]
[341237539,1730711452598,-545.81013493,0.0004144,2]
[341237540,1730711452611,-515.98016576,0.0004144,2]
[341237541,1730711452627,-11231.7497,0.0004144,2]
[341237542,1730711452641,-4575.08,0.00041488,2]
[341237543,1730711452653,-2854.94,0.00041497,2]
[341237544,1730711452667,-2531.29,0.00041514,2]
[341237545,1730711452681,-512.02700311,0.0004154,2]
[341237546,1730711452695,-500.0,0.0004154,2]
[341237547,1730711452711,-500.0,0.0004154,2]
[341237548,1730711452727,-500.0,0.0004154,2]
[341237549,1730711452739,-500.0,0.0004154,2]
[341237550,1730711452750,-500.0,0.0004154,2]
[341237551,1730711452769,-500.0,0.0004154,2]
[341237552,1730711452783,-500.0,0.0004154,2]
[341237553,1730711452797,-500.0,0.0004154,2]
[341237554,1730711452810,-500.0,0.0004154,2]
[341237555,1730711452822,-1533.19,0.0004154,2]
[341237556,1730711452835,-500.0,0.0004154,2]
[341237557,1730711452846,-500.0,0.0004154,2]
[341237558,1730711452861,-193.36147071,0.0004154,2]
[341237559,1730711452875,-500.0,0.0004154,2]
[341237560,1730711452887,-517.00190559,0.0004154,2]
[341237561,1730711452898,-200.0,0.0004154,2]
[341237562,1730711452910,-526.66455141,0.0004154,2]
[341237563,1730711452922,-500.0,0.0004154,2]
[341237564,1730711452935,-500.0,0.0004154,2]
[341237565,1730711452947,-500.0,0.0004154,2]
[341237566,1730711452960,-500.0,0.0004154,2]
[341237567,1730711452971,-500.0,0.0004154,2]
[341237568,1730711452983,-500.0,0.0004154,2]
[341237569,1730711452996,-500.0,0.0004154,2]
[341237570,1730711453008,-500.0,0.0004154,2]
[341237571,1730711453020,-500.0,0.0004154,2]
[341237572,1730711453032,-500.0,0.0004154,2]
[341237573,1730711453044,-500.0,0.0004154,2]
[341237574,1730711453057,-500.0,0.0004154,2]
[341237575,1730711453069,-500.0,0.0004154,2]
[341237576,1730711453082,-607.75709833,0.0004154,2]
[341237577,1730711453095,-510.6148438,0.0004154,2]
[341237578,1730711453107,-500.0,0.0004154,2]
[341237579,1730711453120,-500.0,0.0004154,2]
[341237580,1730711453132,-500.0,0.0004154,2]
[341237581,1730711453145,-500.0,0.0004154,2]
[341237582,1730711453157,-500.0,0.0004154,2]
[341237583,1730711453170,-500.0,0.0004154,2]
[341237584,1730711453182,-500.0,0.0004154,2]
[341237585,1730711453195,-500.0,0.0004154,2]
[341237586,1730711453206,-500.0,0.0004154,2]
[341237587,1730711453219,-500.0,0.0004154,2]
[341237588,1730711453231,-500.0,0.0004154,2]
[341237589,1730711453243,-500.0,0.0004154,2]
[341237590,1730711453256,-500.0,0.0004154,2]
[341237591,1730711453268,-290.96228197,0.0004154,2]
[341237592,1730711453281,-500.0,0.0004154,2]
[341237593,1730711453294,-500.0,0.0004154,2]
[341237594,1730711453307,-500.0,0.0004154,2]
[341237595,1730711453319,-500.0,0.0004154,2]
[341237596,1730711453331,-500.0,0.0004154,2]
[341237597,1730711453344,-500.0,0.0004154,2]
[341237598,1730711453357,-500.0,0.0004154,2]
[341237599,1730711453371,-500.0,0.0004154,2]
[341237600,1730711453384,-500.0,0.0004154,2]
[341237601,1730711453396,-500.0,0.0004154,2]
[341237602,1730711453408,-529.34452611,0.0004154,2]
[341237603,1730711453421,-500.07630229,0.0004154,2]
[341237604,1730711453434,-563.08905634,0.0004154,2]
[341237605,1730711453447,-505.73183937,0.0004154,2]
[341237606,1730711453458,-500.0,0.0004154,2]
[341237607,1730711453467,-500.0,0.0004154,2]
[341237608,1730711453477,-559.73145192,0.0004154,2]
[341237609,1730711453619,-506.45249343,0.0004154,2]
[341237610,1730711453629,-500.0,0.0004154,2]
[341237611,1730711453639,-500.0,0.0004154,2]
[341237612,1730711453647,-500.0,0.0004154,2]
[341237613,1730711453656,-500.0,0.0004154,2]
[341237614,1730711453665,-517.20379628,0.0004154,2]
[341237615,1730711453674,-574.44266474,0.0004154,2]
[341237616,1730711453684,-525.28898064,0.0004154,2]
[341237617,1730711453692,-500.0,0.0004154,2]
[341237618,1730711453702,-500.0,0.0004154,2]
[341237619,1730711453713,-553.80335104,0.0004154,2]
[341237620,1730711453722,-592.54935569,0.0004154,2]
[341237621,1730711453732,-540.02182533,0.0004154,2]
[341237622,1730711453744,-520.61943685,0.0004154,2]
[341237623,1730711453754,-539.55474202,0.0004154,2]
[341237624,1730711453766,-691.73,0.0004154,2]
[341237625,1730711453775,-542.11072516,0.0004154,2]
[341237626,1730711453784,-598.56390352,0.0004154,2]
[341237627,1730711453793,-533.13567959,0.0004154,2]
[341237628,1730711453803,-500.0,0.0004154,2]
[341237629,1730711453811,-505.5326018,0.0004154,2]
[341237630,1730711453821,-513.52934879,0.0004154,2]
[341237631,1730711453830,-500.0,0.0004154,2]
[341237632,1730711453840,-500.0,0.0004154,2]
[341237633,1730711453851,-519.15096516,0.0004154,2]
[341237634,1730711453860,-500.0,0.0004154,2]
[341237635,1730711453869,-500.0,0.0004154,2]
[341237636,1730711453878,-500.0,0.0004154,2]
[341237637,1730711453887,-500.0,0.0004154,2]
[341237638,1730711453896,-635.87,0.0004154,2]
[341237639,1730711453906,-500.0,0.0004154,2]
[341237640,1730711453915,-500.0,0.0004154,2]
[341237641,1730711453925,-500.0,0.0004154,2]
[341237642,1730711453935,-500.0,0.0004154,2]
[341237643,1730711453944,-500.0,0.0004154,2]
[341237644,1730711453953,-500.0,0.0004154,2]
[341237645,1730711453962,-574.43388635,0.0004154,2]
[341237646,1730711453972,-528.9793194,0.0004154,2]
[341237647,1730711453982,-500.0,0.0004154,2]
[341237648,1730711453991,-500.0,0.0004154,2]
[341237649,1730711454001,-500.0,0.0004154,2]
[341237650,1730711454011,-597.70152682,0.0004154,2]
[341237651,1730711454020,-500.0,0.0004154,2]
[341237652,1730711454030,-500.0,0.0004154,2]
[341237653,1730711454039,-500.0,0.0004154,2]
[341237654,1730711454049,-500.0,0.0004154,2]
[341237655,1730711454059,-500.0,0.0004154,2]
[341237656,1730711454068,-500.0,0.0004154,2]
[341237657,1730711454078,-534.55005913,0.0004154,2]
[341237658,1730711454088,-500.0,0.0004154,2]
[341237659,1730711454098,-519.40808302,0.0004154,2]
[341237660,1730711454107,-500.0,0.0004154,2]
[341237661,1730711454116,-191.84159496,0.0004154,2]
[341237662,1730711454126,-347.13195254,0.0004154,2]
[341237663,1730711454135,-500.0,0.0004154,2]
[341237664,1730711454144,-500.0,0.0004154,2]
[341237665,1730711454153,-509.6098887,0.0004154,2]
[341237666,1730711454163,-500.0,0.0004154,2]
[341237667,1730711454172,-511.9329434,0.0004154,2]
[341237668,1730711454182,-500.0,0.0004154,2]
[341237669,1730711454191,-500.0,0.0004154,2]
[341237670,1730711454201,-504.23585749,0.0004154,2]
[341237671,1730711454210,-526.77301401,0.0004154,2]
[341237672,1730711454219,-500.0,0.0004154,2]
[341237673,1730711454228,-519.33835701,0.0004154,2]
[341237674,1730711454238,-509.6923099,0.0004154,2]
[341237675,1730711454247,-508.93241637,0.0004154,2]
[341237676,1730711454256,-25000.0,0.00041542,2]
[341237677,1730711454267,-150.0,0.00041556,30]
[341237678,1730711454276,-5000.0,0.00041589,2]
[341237679,1730711454286,-5000.0,0.00041591,2]
[341237680,1730711454295,-500.0,0.00041618,2]
[341237681,1730711454305,-500.0,0.00041618,2]
[341237682,1730711454314,-769.94,0.00041618,2]
[341237683,1730711454323,-500.0,0.00041618,2]
[341237684,1730711454333,-500.0,0.00041618,2]
[341237685,1730711454342,-500.0,0.00041618,2]
[341237686,1730711454351,-503.82,0.00041618,2]
[341237687,1730711454360,-660.29,0.00041618,2]
[341237688,1730711454370,-428.26743085,0.00041618,2]
[341237689,1730711454379,-500.0,0.00041618,2]
[341237690,1730711454389,-500.0,0.00041618,2]
[341237691,1730711454398,-500.0,0.00041618,2]
[341237692,1730711454408,-500.0,0.00041618,2]
[341237693,1730711454417,-652.9,0.00041618,2]
[341237694,1730711454427,-500.0,0.00041618,2]
[341237695,1730711454437,-500.0,0.00041618,2]
[341237696,1730711454446,-500.0,0.00041618,2]
[341237697,1730711454456,-500.0,0.00041618,2]
[341237698,1730711454466,-500.0,0.00041618,2]
[341237699,1730711454475,-239.0165423,0.00041618,2]
[341237700,1730711454485,-1934.72,0.00041618,2]
[341237701,1730711454494,-500.0,0.00041618,2]
[341237702,1730711454503,-500.0,0.00041618,2]
[341237703,1730711454513,-500.0,0.00041618,2]
[341237704,1730711454523,-500.0,0.00041618,2]
[341237705,1730711454532,-500.0,0.00041618,2]
[341237706,1730711454542,-1674.51,0.00041618,2]
[341237707,1730711454551,-509.27752226,0.00041618,2]
[341237708,1730711454562,-500.0,0.00041618,2]
[341237709,1730711454572,-500.0,0.00041618,2]
[341237710,1730711454581,-500.0,0.00041618,2]
[341237711,1730711454592,-500.0,0.00041618,2]
[341237712,1730711454604,-684.44,0.00041643,2]
[341237713,1730711454615,-500.0,0.00041643,2]
[341237714,1730711454624,-3994.7,0.00041643,2]
[341237715,1730711454634,-1882.57,0.00041643,2]
[341237716,1730711454644,-500.0,0.00041643,2]
[341237717,1730711454654,-500.0,0.00041643,2]
[341237718,1730711454664,-1176.28,0.00041643,2]
[341237719,1730711454674,-5855.7,0.00041643,2]
[341237720,1730711454683,-1152.43,0.00041643,2]
[341237721,1730711454694,-1681.01,0.00041643,2]
[341237722,1730711454704,-500.0,0.00041643,2]
[341237723,1730711454716,-1398.78,0.00041643,2]
[341237724,1730711454728,-1238.48,0.00041643,2]
[341237725,1730711454737,-1242.24,0.00041643,2]
[341237726,1730711454747,-3905.42,0.00041643,2]
[341237727,1730711454757,-500.0,0.00041643,2]
[341237728,1730711454769,-500.0,0.00041643,2]
[341237729,1730711454778,-500.0,0.00041643,2]
[341237730,1730711454787,-5000.0,0.00041686,2]
[341237731,1730711454797,-5000.0,0.00041703,2]
[341237732,1730711454806,-500.0,0.00041713,2]
[341237733,1730711454815,-500.0,0.00041713,2]
[341237734,1730711454825,-500.0,0.00041713,2]
[341237735,1730711454835,-500.0,0.00041713,2]
[341237736,1730711454847,-500.0,0.00041713,2]
[341237737,1730711454857,-500.0,0.00041713,2]
[341237738,1730711454867,-458.99686912,0.00041713,2]
[341237739,1730711454876,-500.0,0.00041713,2]
[341237740,1730711454886,-500.0,0.00041713,2]
[341237741,1730711454895,-500.0,0.00041713,2]
[341237742,1730711454904,-582.36212491,0.00041713,2]
[341237743,1730711454914,-535.50586639,0.00041713,2]
[341237744,1730711454924,-500.0,0.00041713,2]
[341237745,1730711454934,-500.0,0.00041713,2]
[341237746,1730711454943,-500.0,0.00041713,2]
[341237747,1730711454953,-500.0,0.00041713,2]
[341237748,1730711454962,-518.03281685,0.00041713,2]
[341237749,1730711454972,-541.61549838,0.00041713,2]
[341237750,1730711454981,-500.0,0.00041713,2]
[341237751,1730711454990,-500.0,0.00041713,2]
[341237752,1730711455000,-500.0,0.00041713,2]
[341237753,1730711455010,-250.0,0.00041713,2]
[341237754,1730711455021,-500.0,0.00041713,2]
[341237755,1730711455030,-500.0,0.00041713,2]
[341237756,1730711455039,-500.0,0.00041713,2]
[341237757,1730711455049,-500.0,0.00041713,2]
[341237758,1730711455059,-500.0,0.00041713,2]
[341237759,1730711455068,-500.0,0.00041713,2]
[341237760,1730711455077,-518.62534508,0.00041713,2]
[341237761,1730711455086,-500.0,0.00041713,2]
[341237762,1730711455095,-518.63381793,0.00041713,2]
[341237763,1730711455105,-500.0,0.00041713,2]
[341237764,1730711455114,-504.26187414,0.00041713,2]
[341237765,1730711455124,-545.13817713,0.00041713,2]
[341237766,1730711455133,-500.0,0.00041713,2]
[341237767,1730711455142,-500.07937429,0.00041713,2]
[341237768,1730711455152,-528.82164661,0.00041713,2]
[341237769,1730711455161,-500.0,0.00041713,2]
[341237770,1730711455171,-435.41462726,0.00041713,2]
[341237771,1730711455181,-540.83509715,0.00041713,2]
[341237772,1730711455190,-500.0,0.00041713,2]
[341237773,1730711455199,-500.0,0.00041713,2]
[341237774,1730711455208,-523.9504546,0.00041713,2]
[341237775,1730711455217,-500.0,0.00041713,2]
[341237776,1730711455227,-500.0,0.00041713,2]
[341237777,1730711455236,-512.63612183,0.00041713,2]
[341237778,1730711455245,-500.0,0.00041713,2]
[341237779,1730711455255,-500.0,0.00041713,2]
[341237780,1730711455266,-500.0,0.00041713,2]
[341237781,1730711455276,-500.0,0.00041713,2]
[341237782,1730711455285,-500.0,0.00041713,2]
[341237783,1730711455294,-500.0,0.00041713,2]
[341237784,1730711455303,-500.0,0.00041713,2]
[341237785,1730711455313,-540.55038177,0.00041713,2]
[341237786,1730711455322,-508.69941162,0.00041713,2]
[341237787,1730711455330,-500.0,0.00041713,2]
[341237788,1730711455340,-537.77491664,0.00041713,2]
[341237789,1730711455349,-500.0,0.00041713,2]
[341237790,1730711455358,-500.0,0.00041713,2]
[341237791,1730711455367,-150.0,0.00041713,2]
[341237792,1730711455376,-500.0,0.00041713,2]
[341237793,1730711455386,-364.46379006,0.00041713,2]
[341237794,1730711455395,-500.0,0.00041713,2]
[341237795,1730711455404,-544.77159599,0.00041713,2]
[341237796,1730711455413,-500.0,0.00041713,2]
[341237797,1730711455422,-500.0,0.00041713,2]
[341237798,1730711455431,-568.14601564,0.00041713,2]
[341237799,1730711455441,-500.0,0.00041713,2]
[341237800,1730711455450,-560.07323065,0.00041713,2]
[341237801,1730711455459,-500.0,0.00041713,2]
[341237802,1730711455468,-500.0,0.00041713,2]
[341237803,1730711455478,-500.0,0.00041713,2]
[341237804,1730711455487,-500.0,0.00041713,2]
[341237805,1730711455496,-500.0,0.00041713,2]
[341237806,1730711455505,-500.0,0.00041713,2]
[341237807,1730711455516,-500.0,0.00041713,2]
[341237808,1730711455525,-500.0,0.00041713,2]
[341237809,1730711455534,-500.0,0.00041713,2]
[341237810,1730711455543,-500.0,0.00041713,2]
[341237811,1730711455552,-500.0,0.00041713,2]
[341237812,1730711455561,-500.0,0.00041713,2]
[341237813,1730711455570,-449.27235071,0.00041713,2]
[341237814,1730711455580,-500.0,0.00041713,2]
[341237815,1730711455588,-500.0,0.00041713,2]
[341237816,1730711455598,-500.0,0.00041713,2]
[341237817,1730711455607,-500.0,0.00041713,2]
[341237818,1730711455615,-500.0,0.00041713,2]
[341237819,1730711455624,-500.0,0.00041713,2]
[341237820,1730711455634,-500.0,0.00041713,2]
[341237821,1730711455643,-534.22,0.00041713,2]
[341237822,1730711455652,-500.0,0.00041713,2]
[341237823,1730711455661,-500.0,0.00041713,2]
[341237824,1730711455670,-500.0,0.00041713,2]
[341237825,1730711455679,-500.0,0.00041713,2]
[341237826,1730711455688,-500.0,0.00041713,2]
[341237827,1730711455697,-500.0,0.00041713,2]
[341237828,1730711455706,-500.0,0.00041713,2]
[341237829,1730711455716,-544.72460227,0.00041713,2]
[341237830,1730711455725,-500.0,0.00041713,2]
[341237831,1730711455734,-500.0,0.00041713,2]
[341237832,1730711455743,-500.0,0.00041713,2]
[341237833,1730711455752,-500.0,0.00041713,2]
[341237834,1730711455762,-514.64010447,0.00041713,2]
[341237835,1730711455860,-500.0,0.00041713,2]
[341237836,1730711455871,-506.32034915,0.00041713,2]
[341237837,1730711455880,-500.0,0.00041713,2]
[341237838,1730711455892,-500.0,0.00041713,2]
[341237839,1730711455902,-500.0,0.00041713,2]
[341237840,1730711455912,-500.0,0.00041713,2]
[341237841,1730711455922,-534.0,0.00041713,2]
[341237842,1730711455932,-500.0,0.00041713,2]
[341237843,1730711455942,-500.0,0.00041713,2]
[341237844,1730711455951,-524.71911533,0.00041713,2]
[341237845,1730711455961,-500.0,0.00041713,2]
[341237846,1730711455970,-294.90471881,0.00041713,2]
[341237847,1730711455979,-500.0,0.00041713,2]
[341237848,1730711455988,-500.0,0.00041713,2]
[341237849,1730711455997,-563.49088167,0.00041713,2]
[341237850,1730711456006,-500.0,0.00041713,2]
[341237851,1730711456019,-500.0,0.00041713,2]
[341237852,1730711456028,-500.0,0.00041713,2]
[341237853,1730711456037,-558.43549014,0.00041713,2]
[341237854,1730711456046,-1016.33,0.00041713,2]
[341237855,1730711456055,-1154.26,0.00041713,2]
[341237856,1730711456064,-508.27974583,0.00041713,2]
[341237857,1730711456073,-500.0,0.00041713,2]
[341237858,1730711456083,-520.73855508,0.00041713,2]
[341237859,1730711456092,-500.0,0.00041713,2]
[341237860,1730711456101,-500.0,0.00041713,2]
[341237861,1730711456111,-10956.67,0.00041713,2]
[341237862,1730711456120,-500.0,0.00041713,2]
[341237863,1730711456129,-500.0,0.00041713,2]
[341237864,1730711456139,-677.22,0.00041713,2]
[341237865,1730711456148,-547.77754974,0.00041713,2]
[341237866,1730711456157,-517.31271419,0.00041713,2]
[341237867,1730711456167,-500.0,0.00041713,2]
[341237868,1730711456176,-500.0,0.00041713,2]
[341237869,1730711456185,-500.0,0.00041713,2]
[341237870,1730711456194,-500.0,0.00041713,2]
[341237871,1730711456203,-500.0,0.00041713,2]
[341237872,1730711456212,-500.0,0.00041713,2]
[341237873,1730711456221,-500.0,0.00041713,2]
[341237874,1730711456231,-500.0,0.00041713,2]
[341237875,1730711456239,-500.0,0.00041713,2]
[341237876,1730711456249,-500.0,0.00041713,2]
[341237877,1730711456259,-500.0,0.00041713,2]
[341237878,1730711456268,-500.0,0.00041713,2]
[341237879,1730711456277,-544.32583312,0.00041713,2]
[341237880,1730711456287,-522.56728714,0.00041713,2]
[341237881,1730711456296,-648.63382564,0.00041713,2]
[341237882,1730711456305,-500.0,0.00041713,2]
[341237883,1730711456314,-500.0,0.00041713,2]
[341237884,1730711456324,-500.0,0.00041713,2]
[341237885,1730711456333,-500.0,0.00041713,2]
[341237886,1730711456342,-500.0,0.00041713,2]
[341237887,1730711456351,-506.66305624,0.00041713,2]
[341237888,1730711456361,-500.0,0.00041713,2]
[341237889,1730711456370,-500.0,0.00041713,2]
[341237890,1730711456380,-500.0,0.00041713,2]
[341237891,1730711456389,-500.0,0.00041713,2]
[341237892,1730711456398,-500.0,0.00041713,2]
[341237893,1730711456407,-500.0,0.00041713,2]
[341237894,1730711456416,-500.0,0.00041713,2]
[341237895,1730711456426,-336.37336574,0.00041713,2]
[341237896,1730711456435,-500.0,0.00041713,2]
[341237897,1730711456444,-532.42578151,0.00041713,2]
[341237898,1730711456454,-187.85563192,0.00041713,2]
[341237899,1730711456463,-500.0,0.00041713,2]
[341237900,1730711456472,-543.93854312,0.00041713,2]
[341237901,1730711456491,-521.80294102,0.00041713,2]
[341237902,1730711456502,-500.0,0.00041713,2]
[341237903,1730711456512,-557.23291484,0.00041713,2]
[341237904,1730711456522,-581.25011704,0.00041713,2]
[341237905,1730711456531,-500.0,0.00041713,2]
[341237906,1730711456541,-500.0,0.00041713,2]
[341237907,1730711456551,-500.0,0.00041713,2]
[341237908,1730711456560,-500.0,0.00041713,2]
[341237909,1730711456569,-1011.7,0.00041713,2]
[341237910,1730711456579,-500.0,0.00041713,2]
[341237911,1730711456589,-579.10450337,0.00041713,2]
[341237912,1730711456598,-551.69225622,0.00041713,2]
[341237913,1730711456607,-500.0,0.00041713,2]